[Event "European Online Club-ch-G 2021"]
[Site "Online"]
[Date "2021.03.27"]
[Round "1.1"]
[White "Grachev, Boris"]
[Black "Altun, Arda"]
[Result "1-0"]
[ECO "D46"]
[WhiteElo "2619"]
[BlackElo "2074"]
[Annotator "ChessBase"]
[PlyCount "79"]
[EventDate "2021.03.27"]
[EventType "team-tourn"]
[EventCountry "NET"]
[SourceTitle "playchess.com"]
[Source "ChessBase"]
[SourceQuality "1"]
[TimeControl "900+5"]

1. d4 {[%emt 0:00:00]} d5 {[%emt 0:00:04]} 2. Nf3 {[%emt 0:00:06]} Nf6 {[%emt 0:00:08]} 3. c4 {[%emt 0:00:03]} c6 {[%emt 0:00:04]} 4. e3 {[%emt 0:00:03]} e6 {[%emt 0:01:03]} 5. Nc3 {[%emt 0:00:13]} Bd6 {[%emt 0:00:13]} 6. Qc2 {[%emt 0:00:21]} Nbd7 {[%emt 0:00:22]} 7. Bd3 {[%emt 0:00:12]} dxc4 {[%emt 0:00:23]} 8. Bxc4 {[%emt 0:00:01]} O-O {[%emt 0:00:07]} 9. O-O {[%emt 0:00:05]} Qe7 {[%emt 0:00:43]} 10. Bb3 {[%emt 0:00:05]} b6 {[%emt 0:00:29]} 11. h3 {[%emt 0:01:26]} Bb7 {[%emt 0:00:20]} 12. e4 {[%emt 0:00:08]} e5 {[%emt 0:01:13]} 13. Be3 {[%emt 0:00:13]} c5 {[%emt 0:00:47]} 14. d5 {[%emt 0:00:10]} a6 {[%emt 0:00:36]} 15. a4 {[%emt 0:00:03]} Rac8 {[%emt 0:00:07]} 16. Bc4 {[%emt 0:00:03]} Ne8 {[%emt 0:00:51]} 17. Rfe1 {[%emt 0:00:15]} h6 {[%emt 0:00:32]} 18. g3 {[%emt 0:00:15]} Bc7 {[%emt 0:00:11]} 19. Nh4 {[%emt 0:00:56]} Nd6 {[%emt 0:00:18]} 20. Bf1 {[%emt 0:00:02]} g5 {[%emt 0:01:07]} 21. Nf3 {[%emt 0:00:15]} f5 {[%emt 0:00:53]} 22. exf5 {[%emt 0:00:03]} Nxf5 {[%emt 0:00:03]} 23. Bg2 {[%emt 0:00:58]} Qf7 {[%emt 0:00:34]} 24. Nh2 {[%emt 0:00:38]} Nd4 {[%emt 0:00:51]} 25. Qd1 {[%emt 0:00:02]} Nf6 {[%emt 0:00:14]} 26. Ng4 {[%emt 0:00:10]} Nxg4 {[%emt 0:00:19]} 27. Qxg4 {[%emt 0:00:02]} Nc2 {[%emt 0:01:00]} 28. Rad1 {[%emt 0:00:17]} Nxe1 {[%emt 0:00:06]} 29. Rxe1 {[%emt 0:00:01]} Rce8 {[%emt 0:00:23]} 30. Qe4 {[%emt 0:00:22]} Bd6 {[%emt 0:00:39]} 31. g4 {[%emt 0:00:21]} Kg7 {[%emt 0:00:12]} 32. Rd1 {[%emt 0:00:11]} Qg6 {[%emt 0:00:10]} 33. Qc4 {[%emt 0:00:14]} Qc2 {[%emt 0:00:24]} 34. Be4 {[%emt 0:00:08]} Qxb2 {[%emt 0:00:02]} 35. Rb1 {[%emt 0:00:13]} Qa3 {[%emt 0:01:50]} 36. Rxb6 {[%emt 0:00:22]} Qa1+ {[%emt 0:00:24]} 37. Rb1 {[%emt 0:00:03]} Qa3 {[%emt 0:00:05]} 38. Rxb7+ {[%emt 0:00:03]} Rf7 {[%emt 0:00:03]} 39. Rb3 {[%emt 0:00:06]} Qa1+ {[%emt 0:00:02]} 40. Rb1 {[%emt 0:00:02]} 1-0

[Event "European Online Club-ch-G 2021"]
[Site "Online"]
[Date "2021.03.27"]
[Round "1.2"]
[White "Danaci, Ege"]
[Black "Motylev, Alexander"]
[Result "0-1"]
[ECO "B11"]
[WhiteElo "1996"]
[BlackElo "2641"]
[Annotator "ChessBase"]
[PlyCount "86"]
[EventDate "2021.03.27"]
[EventType "team-tourn"]
[EventCountry "NET"]
[SourceTitle "playchess.com"]
[Source "ChessBase"]
[SourceQuality "1"]
[TimeControl "900+5"]

1. e4 {[%emt 0:00:00]} c6 {[%emt 0:00:23]} 2. Nc3 {[%emt 0:00:08]} d5 {[%emt 0:00:03]} 3. Nf3 {[%emt 0:00:02]} dxe4 {[%emt 0:00:37]} 4. Nxe4 {[%emt 0:00:05]} Nf6 {[%emt 0:00:03]} 5. Qe2 {[%emt 0:00:05]} Nxe4 {[%emt 0:00:06]} 6. Qxe4 {[%emt 0:00:01]} g6 {[%emt 0:00:04]} 7. Bc4 {[%emt 0:01:08]} Bg7 {[%emt 0:00:10]} 8. d4 {[%emt 0:00:34]} O-O {[%emt 0:00:26]} 9. O-O {[%emt 0:00:09]} Nd7 {[%emt 0:01:08]} 10. Re1 {[%emt 0:01:00]} Nb6 {[%emt 0:00:29]} 11. Bb3 {[%emt 0:00:41]} a5 {[%emt 0:00:04]} 12. a3 {[%emt 0:00:23]} a4 {[%emt 0:00:04]} 13. Ba2 {[%emt 0:00:10]} Bf5 {[%emt 0:00:03]} 14. Qe2 {[%emt 0:00:35]} Bg4 {[%emt 0:00:07]} 15. c3 {[%emt 0:00:15]} Nd5 {[%emt 0:00:26]} 16. Bg5 {[%emt 0:00:42]} Re8 {[%emt 0:00:05]} 17. h3 {[%emt 0:00:07]} Bxf3 {[%emt 0:00:01]} 18. Qxf3 {[%emt 0:00:03]} Qd7 {[%emt 0:00:03]} 19. Rad1 {[%emt 0:00:32]} b5 {[%emt 0:00:11]} 20. h4 {[%emt 0:00:56]} h6 {[%emt 0:00:16]} 21. Bc1 {[%emt 0:00:05]} Qf5 {[%emt 0:02:21]} 22. Qxf5 {[%emt 0:02:26]} gxf5 {[%emt 0:00:03]} 23. g3 {[%emt 0:00:18]} e6 {[%emt 0:00:06]} 24. f3 {[%emt 0:00:19]} h5 {[%emt 0:00:15]} 25. Kf2 {[%emt 0:00:25]} Bf6 {[%emt 0:00:04]} 26. Bb1 {[%emt 0:01:28]} Kg7 {[%emt 0:00:07]} 27. Bd3 {[%emt 0:00:09]} Rg8 {[%emt 0:00:39]} 28. Bg5 {[%emt 0:00:32]} Kg6 {[%emt 0:00:44]} 29. g4 {[%emt 0:00:34]} hxg4 {[%emt 0:00:52]} 30. fxg4 {[%emt 0:00:05]} Bxg5 {[%emt 0:00:01]} 31. gxf5+ {[%emt 0:00:07]} exf5 {[%emt 0:01:08]} 32. hxg5 {[%emt 0:00:04]} Rae8 {[%emt 0:00:03]} 33. Kf3 {[%emt 0:00:46]} Rh8 {[%emt 0:00:59]} 34. Kg3 {[%emt 0:02:05]} Kxg5 {[%emt 0:00:16]} 35. Re5 {[%emt 0:00:16]} Rxe5 {[%emt 0:01:49]} 36. dxe5 {[%emt 0:00:03]} Ne3 {[%emt 0:00:01]} 37. Rg1 {[%emt 0:00:17]} Ng4 {[%emt 0:00:47]} 38. Kf3 {[%emt 0:00:30]} Rh3+ {[%emt 0:00:16]} 39. Ke2 {[%emt 0:00:04]} Rh2+ {[%emt 0:00:02]} 40. Kd1 {[%emt 0:00:05]} Rxb2 {[%emt 0:00:09]} 41. Kc1 {[%emt 0:00:02]} Rb3 {[%emt 0:00:43]} 42. Rf1 {[%emt 0:00:07]} f4 {[%emt 0:00:13]} 43. Kd2 {[%emt 0:00:07]} Nxe5 {[%emt 0:00:11]} 0-1

[Event "European Online Club-ch-G 2021"]
[Site "Online"]
[Date "2021.03.27"]
[Round "1.3"]
[White "Najer, Evgeniy"]
[Black "Yildirim, Ibrahim Halil"]
[Result "1-0"]
[ECO "B12"]
[WhiteElo "2648"]
[BlackElo "1783"]
[Annotator "ChessBase"]
[PlyCount "83"]
[EventDate "2021.03.27"]
[EventType "team-tourn"]
[EventCountry "NET"]
[SourceTitle "playchess.com"]
[Source "ChessBase"]
[SourceQuality "1"]
[TimeControl "900+5"]

1. e4 {[%emt 0:00:00]} c6 {[%emt 0:01:04]} 2. d4 {[%emt 0:00:04]} d5 {[%emt 0:00:04]} 3. e5 {[%emt 0:00:14]} Bf5 {[%emt 0:00:03]} 4. Nf3 {[%emt 0:00:12]} e6 {[%emt 0:00:01]} 5. Be2 {[%emt 0:00:01]} c5 {[%emt 0:00:02]} 6. Be3 {[%emt 0:00:08]} Qb6 {[%emt 0:00:16]} 7. Nc3 {[%emt 0:00:19]} Nc6 {[%emt 0:01:37]} 8. O-O {[%emt 0:00:33]} Qxb2 {[%emt 0:00:18]} 9. Qe1 {[%emt 0:00:04]} cxd4 {[%emt 0:01:09]} 10. Bxd4 {[%emt 0:00:46]} Nxd4 {[%emt 0:01:13]} 11. Nxd4 {[%emt 0:00:03]} Bb4 {[%emt 0:00:24]} 12. Rb1 {[%emt 0:00:17]} Bxc3 {[%emt 0:01:11]} 13. Rxb2 {[%emt 0:00:06]} Bxe1 {[%emt 0:00:17]} 14. Rxe1 {[%emt 0:00:09]} b6 {[%emt 0:01:47]} 15. h4 {[%emt 0:00:04]} h5 {[%emt 0:00:46]} 16. Nxf5 {[%emt 0:00:12]} exf5 {[%emt 0:00:02]} 17. c4 {[%emt 0:00:02]} d4 {[%emt 0:01:29]} 18. Rd2 {[%emt 0:05:03]} Rd8 {[%emt 0:01:46]} 19. Red1 {[%emt 0:00:42]} Ne7 {[%emt 0:00:43]} 20. Rxd4 {[%emt 0:02:48]} Rxd4 {[%emt 0:00:28]} 21. Rxd4 {[%emt 0:00:02]} Nc6 {[%emt 0:01:06]} 22. Rd5 {[%emt 0:00:02]} Ke7 {[%emt 0:00:29]} 23. c5 {[%emt 0:00:36]} Rd8 {[%emt 0:00:18]} 24. Rxd8 {[%emt 0:00:41]} Kxd8 {[%emt 0:00:02]} 25. cxb6 {[%emt 0:00:12]} axb6 {[%emt 0:00:02]} 26. f4 {[%emt 0:00:30]} g6 {[%emt 0:00:02]} 27. Kf2 {[%emt 0:00:02]} Kc7 {[%emt 0:00:18]} 28. Ke3 {[%emt 0:00:45]} Nd8 {[%emt 0:00:04]} 29. Bb5 {[%emt 0:00:03]} Nc6 {[%emt 0:00:15]} 30. g3 {[%emt 0:00:24]} Nb4 {[%emt 0:00:06]} 31. Bc4 {[%emt 0:00:13]} f6 {[%emt 0:00:03]} 32. exf6 {[%emt 0:00:06]} Kd6 {[%emt 0:00:01]} 33. Bf7 {[%emt 0:00:19]} Nc6 {[%emt 0:00:07]} 34. Bxg6 {[%emt 0:00:10]} Ke6 {[%emt 0:00:02]} 35. f7 {[%emt 0:00:02]} Ke7 {[%emt 0:00:01]} 36. Bxh5 {[%emt 0:00:07]} Nb4 {[%emt 0:00:07]} 37. Bg6 {[%emt 0:00:22]} Nxa2 {[%emt 0:00:02]} 38. h5 {[%emt 0:00:02]} Nb4 {[%emt 0:00:08]} 39. h6 {[%emt 0:00:15]} Nd5+ {[%emt 0:00:12]} 40. Kd4 {[%emt 0:00:11]} Nc7 {[%emt 0:00:01]} 41. h7 {[%emt 0:00:13]} Ne6+ {[%emt 0:00:01]} 42. Ke3 {[%emt 0:00:12]} 1-0

[Event "European Online Club-ch-G 2021"]
[Site "Online"]
[Date "2021.03.27"]
[Round "1.4"]
[White "Ozata, Doruk"]
[Black "Kobalia, Mikhail"]
[Result "0-1"]
[ECO "B26"]
[WhiteElo "1646"]
[BlackElo "2587"]
[Annotator "ChessBase"]
[PlyCount "154"]
[EventDate "2021.03.27"]
[EventType "team-tourn"]
[EventCountry "NET"]
[SourceTitle "playchess.com"]
[Source "ChessBase"]
[SourceQuality "1"]
[TimeControl "900+5"]

1. e4 {[%emt 0:00:00]} c5 {[%emt 0:00:47]} 2. Nc3 {[%emt 0:00:48]} Nc6 {[%emt 0:00:06]} 3. g3 {[%emt 0:00:02]} g6 {[%emt 0:00:03]} 4. Bg2 {[%emt 0:00:01]} Bg7 {[%emt 0:00:01]} 5. d3 {[%emt 0:00:00]} d6 {[%emt 0:00:09]} 6. Be3 {[%emt 0:00:03]} Rb8 {[%emt 0:00:28]} 7. Qd2 {[%emt 0:00:33]} b5 {[%emt 0:00:02]} 8. Nge2 {[%emt 0:00:08]} b4 {[%emt 0:00:03]} 9. Nd1 {[%emt 0:00:07]} Bg4 {[%emt 0:00:27]} 10. O-O {[%emt 0:00:53]} Nf6 {[%emt 0:00:04]} 11. h3 {[%emt 0:00:03]} Bxe2 {[%emt 0:00:04]} 12. Qxe2 {[%emt 0:00:01]} O-O {[%emt 0:00:02]} 13. f4 {[%emt 0:00:02]} Qc7 {[%emt 0:00:08]} 14. g4 {[%emt 0:00:13]} a5 {[%emt 0:00:04]} 15. g5 {[%emt 0:00:53]} Nd7 {[%emt 0:00:04]} 16. f5 {[%emt 0:00:38]} a4 {[%emt 0:00:08]} 17. h4 {[%emt 0:00:09]} a3 {[%emt 0:00:03]} 18. Rb1 {[%emt 0:00:06]} axb2 {[%emt 0:00:05]} 19. Nxb2 {[%emt 0:00:27]} Ra8 {[%emt 0:00:04]} 20. Nc4 {[%emt 0:02:09]} Rxa2 {[%emt 0:00:05]} 21. h5 {[%emt 0:00:22]} Nd4 {[%emt 0:04:23]} 22. Bxd4 {[%emt 0:01:24]} Bxd4+ {[%emt 0:00:04]} 23. Kh1 {[%emt 0:00:04]} Ne5 {[%emt 0:02:58]} 24. hxg6 {[%emt 0:01:55]} fxg6 {[%emt 0:00:13]} 25. Nxe5 {[%emt 0:00:03]} Bxe5 {[%emt 0:00:08]} 26. fxg6 {[%emt 0:00:05]} Raa8 {[%emt 0:01:25]} 27. Qh5 {[%emt 0:00:41]} e6 {[%emt 0:00:11]} 28. Bh3 {[%emt 0:00:04]} Qg7 {[%emt 0:00:44]} 29. Bxe6+ {[%emt 0:00:09]} Kh8 {[%emt 0:00:02]} 30. Qxh7+ {[%emt 0:02:34]} Qxh7+ {[%emt 0:00:04]} 31. gxh7 {[%emt 0:00:01]} Kxh7 {[%emt 0:00:12]} 32. Rxf8 {[%emt 0:00:54]} Rxf8 {[%emt 0:00:03]} 33. Bf5+ {[%emt 0:00:22]} Kg7 {[%emt 0:00:04]} 34. Kg2 {[%emt 0:00:03]} Ra8 {[%emt 0:00:56]} 35. Be6 {[%emt 0:01:05]} Kg6 {[%emt 0:00:06]} 36. Rf1 {[%emt 0:00:13]} Kxg5 {[%emt 0:00:05]} 37. Rf5+ {[%emt 0:00:16]} Kg6 {[%emt 0:00:02]} 38. Kf3 {[%emt 0:00:04]} Rh8 {[%emt 0:00:04]} 39. Bb3 {[%emt 0:00:12]} Rh1 {[%emt 0:00:03]} 40. Ke2 {[%emt 0:00:14]} Rh2+ {[%emt 0:00:07]} 41. Kf3 {[%emt 0:00:08]} Rh1 {[%emt 0:00:10]} 42. Ke2 {[%emt 0:00:02]} Rc1 {[%emt 0:00:12]} 43. Kd2 {[%emt 0:00:09]} Rg1 {[%emt 0:00:03]} 44. Ke2 {[%emt 0:00:02]} Bd4 {[%emt 0:00:08]} 45. Kd2 {[%emt 0:00:18]} Rg2+ {[%emt 0:00:03]} 46. Kd1 {[%emt 0:00:03]} Bc3 {[%emt 0:00:03]} 47. Rf1 {[%emt 0:00:04]} Kg5 {[%emt 0:00:07]} 48. Kc1 {[%emt 0:00:04]} Kh4 {[%emt 0:00:04]} 49. Kd1 {[%emt 0:00:05]} Kg3 {[%emt 0:00:04]} 50. Bd5 {[%emt 0:00:07]} Be5 {[%emt 0:00:03]} 51. Bb3 {[%emt 0:00:02]} Kh2 {[%emt 0:00:03]} 52. Rf5 {[%emt 0:00:03]} Rg7 {[%emt 0:00:10]} 53. Ke2 {[%emt 0:00:03]} Bd4 {[%emt 0:00:04]} 54. Rf3 {[%emt 0:00:11]} Rg2+ {[%emt 0:00:04]} 55. Kd1 {[%emt 0:00:01]} Bc3 {[%emt 0:00:03]} 56. Rf1 {[%emt 0:00:03]} Rg7 {[%emt 0:00:05]} 57. Ke2 {[%emt 0:00:05]} Bd4 {[%emt 0:00:03]} 58. Rf3 {[%emt 0:00:04]} Rg2+ {[%emt 0:00:07]} 59. Kd1 {[%emt 0:00:02]} Kg1 {[%emt 0:00:07]} 60. Rf5 {[%emt 0:00:08]} Bc3 {[%emt 0:00:07]} 61. Bd5 {[%emt 0:00:10]} Rd2+ {[%emt 0:00:04]} 62. Kc1 {[%emt 0:00:02]} Re2 {[%emt 0:00:02]} 63. Kb1 {[%emt 0:00:06]} Be5 {[%emt 0:00:09]} 64. Rf7 {[%emt 0:00:10]} Re1+ {[%emt 0:00:02]} 65. Ka2 {[%emt 0:00:02]} Ra1+ {[%emt 0:00:01]} 66. Kb3 {[%emt 0:00:01]} Ra3+ {[%emt 0:00:02]} 67. Kc4 {[%emt 0:00:02]} Rc3+ {[%emt 0:00:01]} 68. Kb5 {[%emt 0:00:01]} Rxc2 {[%emt 0:00:02]} 69. Bc4 {[%emt 0:00:06]} Rc3 {[%emt 0:00:04]} 70. Rb7 {[%emt 0:00:08]} Kf2 {[%emt 0:00:03]} 71. Kc6 {[%emt 0:00:04]} Ke3 {[%emt 0:00:02]} 72. Kd5 {[%emt 0:00:03]} Rxd3+ {[%emt 0:00:02]} 73. Bxd3 {[%emt 0:00:03]} Kxd3 {[%emt 0:00:01]} 74. Rb5 {[%emt 0:00:09]} Kc3 {[%emt 0:00:05]} 75. Rb6 {[%emt 0:00:03]} b3 {[%emt 0:00:03]} 76. Rxd6 {[%emt 0:00:01]} Bxd6 {[%emt 0:00:02]} 77. Kxd6 {[%emt 0:00:01]} b2 {[%emt 0:00:01]} 0-1

[Event "European Online Club-ch-G 2021"]
[Site "Online"]
[Date "2021.03.27"]
[Round "1.5"]
[White "Jobava, Baadur"]
[Black "Flear, Glenn C"]
[Result "1-0"]
[ECO "D35"]
[WhiteElo "2603"]
[BlackElo "2431"]
[Annotator "ChessBase"]
[PlyCount "81"]
[EventDate "2021.03.27"]
[EventType "team-tourn"]
[EventCountry "NET"]
[SourceTitle "playchess.com"]
[Source "ChessBase"]
[SourceQuality "1"]
[TimeControl "900+5"]

1. d4 {[%emt 0:00:00]} d5 {[%emt 0:00:04]} 2. c4 {[%emt 0:02:09]} e6 {[%emt 0:00:05]} 3. Nc3 {[%emt 0:00:32]} Nf6 {[%emt 0:00:21]} 4. Bf4 {[%emt 0:00:04]} Bd6 {[%emt 0:01:08]} 5. Bg3 {[%emt 0:00:03]} b6 {[%emt 0:00:48]} 6. e3 {[%emt 0:00:03]} Bb7 {[%emt 0:00:29]} 7. cxd5 {[%emt 0:01:09]} Nxd5 {[%emt 0:00:26]} 8. Nxd5 {[%emt 0:00:16]} Bxd5 {[%emt 0:00:40]} 9. Ne2 {[%emt 0:00:06]} Nd7 {[%emt 0:00:15]} 10. Nc3 {[%emt 0:00:05]} Bb7 {[%emt 0:00:05]} 11. Nb5 {[%emt 0:02:31]} Bxg3 {[%emt 0:01:14]} 12. hxg3 {[%emt 0:00:00]} a6 {[%emt 0:00:02]} 13. Nc3 {[%emt 0:00:04]} c5 {[%emt 0:00:05]} 14. Qg4 {[%emt 0:02:24]} g6 {[%emt 0:00:54]} 15. O-O-O {[%emt 0:00:20]} Qe7 {[%emt 0:00:26]} 16. Qf4 {[%emt 0:02:36]} cxd4 {[%emt 0:02:31]} 17. Qxd4 {[%emt 0:00:23]} e5 {[%emt 0:00:39]} 18. Qa4 {[%emt 0:00:53]} b5 {[%emt 0:00:25]} 19. Qh4 {[%emt 0:00:15]} Qxh4 {[%emt 0:00:30]} 20. Rxh4 {[%emt 0:00:00]} Ke7 {[%emt 0:00:39]} 21. a4 {[%emt 0:00:02]} bxa4 {[%emt 0:00:17]} 22. Rxa4 {[%emt 0:00:00]} Rhc8 {[%emt 0:00:24]} 23. Ra5 {[%emt 0:00:12]} f6 {[%emt 0:00:43]} 24. f3 {[%emt 0:00:34]} Nb6 {[%emt 0:00:37]} 25. e4 {[%emt 0:00:07]} Nc4 {[%emt 0:00:11]} 26. Bxc4 {[%emt 0:01:10]} Rxc4 {[%emt 0:00:03]} 27. g4 {[%emt 0:00:29]} Rc7 {[%emt 0:00:10]} 28. Rh1 {[%emt 0:00:25]} Ke6 {[%emt 0:00:10]} 29. Kd2 {[%emt 0:00:11]} Rd8+ {[%emt 0:00:11]} 30. Ke3 {[%emt 0:00:12]} Rcd7 {[%emt 0:00:04]} 31. Na4 {[%emt 0:00:08]} Rd3+ {[%emt 0:00:26]} 32. Kf2 {[%emt 0:00:02]} Rd2+ {[%emt 0:00:02]} 33. Kg3 {[%emt 0:00:01]} Bc8 {[%emt 0:01:14]} 34. Rxh7 {[%emt 0:00:03]} f5 {[%emt 0:00:22]} 35. g5 {[%emt 0:00:16]} fxe4 {[%emt 0:00:21]} 36. Nc5+ {[%emt 0:00:02]} Kf5 {[%emt 0:00:11]} 37. Rf7+ {[%emt 0:00:02]} Kxg5 {[%emt 0:00:07]} 38. Nxe4+ {[%emt 0:00:00]} Kh6 {[%emt 0:00:02]} 39. Nxd2 {[%emt 0:00:02]} Rxd2 {[%emt 0:00:03]} 40. Rxe5 {[%emt 0:00:05]} Rxb2 {[%emt 0:00:13]} 41. Re8 {[%emt 0:00:02]} 1-0

[Event "European Online Club-ch-G 2021"]
[Site "Online"]
[Date "2021.03.27"]
[Round "1.6"]
[White "Boyer, Mahel"]
[Black "Dreev, Aleksey"]
[Result "0-1"]
[ECO "B10"]
[WhiteElo "2333"]
[BlackElo "2647"]
[Annotator "ChessBase"]
[PlyCount "132"]
[EventDate "2021.03.27"]
[EventType "team-tourn"]
[EventCountry "NET"]
[SourceTitle "playchess.com"]
[Source "ChessBase"]
[SourceQuality "1"]
[TimeControl "900+5"]

1. e4 {[%emt 0:00:00]} c6 {[%emt 0:00:18]} 2. c4 {[%emt 0:00:11]} d5 {[%emt 0:00:02]} 3. cxd5 {[%emt 0:00:02]} cxd5 {[%emt 0:00:01]} 4. exd5 {[%emt 0:00:01]} Nf6 {[%emt 0:00:02]} 5. Nc3 {[%emt 0:00:03]} Nxd5 {[%emt 0:00:03]} 6. Nf3 {[%emt 0:00:02]} Nc6 {[%emt 0:00:29]} 7. Bb5 {[%emt 0:00:02]} g6 {[%emt 0:00:09]} 8. Qa4 {[%emt 0:00:24]} Qd6 {[%emt 0:00:28]} 9. O-O {[%emt 0:00:14]} Bg7 {[%emt 0:00:14]} 10. b3 {[%emt 0:01:56]} Nb6 {[%emt 0:01:28]} 11. Qh4 {[%emt 0:00:46]} O-O {[%emt 0:00:08]} 12. Bxc6 {[%emt 0:00:15]} Qxc6 {[%emt 0:01:30]} 13. Qxe7 {[%emt 0:08:13]} Bg4 {[%emt 0:00:38]} 14. Ne5 {[%emt 0:00:24]} Qe6 {[%emt 0:00:10]} 15. Qxe6 {[%emt 0:00:07]} Bxe6 {[%emt 0:00:02]} 16. d4 {[%emt 0:00:12]} Rac8 {[%emt 0:00:09]} 17. Nb5 {[%emt 0:00:16]} Rfd8 {[%emt 0:00:54]} 18. Nxa7 {[%emt 0:00:22]} Rc2 {[%emt 0:00:39]} 19. Be3 {[%emt 0:00:27]} Ra8 {[%emt 0:00:23]} 20. Rfc1 {[%emt 0:01:08]} Rxc1+ {[%emt 0:01:12]} 21. Rxc1 {[%emt 0:00:04]} Rxa7 {[%emt 0:00:34]} 22. d5 {[%emt 0:00:02]} Nxd5 {[%emt 0:00:04]} 23. Bxa7 {[%emt 0:00:03]} Bxe5 {[%emt 0:00:02]} 24. g3 {[%emt 0:01:10]} g5 {[%emt 0:00:30]} 25. Rd1 {[%emt 0:00:22]} Kf8 {[%emt 0:00:33]} 26. Bd4 {[%emt 0:00:07]} Nc3 {[%emt 0:00:53]} 27. Bxc3 {[%emt 0:00:15]} Bxc3 {[%emt 0:00:03]} 28. Rd8+ {[%emt 0:00:02]} Ke7 {[%emt 0:00:11]} 29. Rb8 {[%emt 0:00:02]} Bd5 {[%emt 0:00:02]} 30. Rc8 {[%emt 0:00:04]} Bc6 {[%emt 0:00:09]} 31. Rg8 {[%emt 0:00:11]} h6 {[%emt 0:00:06]} 32. Rc8 {[%emt 0:00:05]} Ke6 {[%emt 0:00:24]} 33. Rc7 {[%emt 0:00:05]} h5 {[%emt 0:00:34]} 34. Rc8 {[%emt 0:00:02]} Kf5 {[%emt 0:00:15]} 35. Rf8 {[%emt 0:00:04]} f6 {[%emt 0:00:05]} 36. Rh8 {[%emt 0:00:07]} Kg4 {[%emt 0:00:05]} 37. Rd8 {[%emt 0:00:06]} Be4 {[%emt 0:00:23]} 38. Rc8 {[%emt 0:00:04]} Bc6 {[%emt 0:00:15]} 39. Rd8 {[%emt 0:00:01]} h4 {[%emt 0:00:37]} 40. Rd3 {[%emt 0:00:05]} Be5 {[%emt 0:00:14]} 41. Re3 {[%emt 0:00:09]} h3 {[%emt 0:00:27]} 42. Rd3 {[%emt 0:00:03]} Kf5 {[%emt 0:00:02]} 43. Re3 {[%emt 0:00:07]} g4 {[%emt 0:00:04]} 44. Rd3 {[%emt 0:00:04]} Ke4 {[%emt 0:00:04]} 45. Re3+ {[%emt 0:00:06]} Kd4 {[%emt 0:00:02]} 46. Re1 {[%emt 0:00:02]} Kc3 {[%emt 0:00:05]} 47. Re3+ {[%emt 0:00:04]} Kb2 {[%emt 0:00:04]} 48. Re2+ {[%emt 0:00:02]} Ka3 {[%emt 0:00:01]} 49. Rc2 {[%emt 0:00:04]} Bf3 {[%emt 0:00:05]} 50. Kf1 {[%emt 0:00:17]} Bb2 {[%emt 0:00:07]} 51. b4 {[%emt 0:00:02]} b5 {[%emt 0:00:10]} 52. Kg1 {[%emt 0:00:08]} Be5 {[%emt 0:00:11]} 53. Rc5 {[%emt 0:00:04]} Kxb4 {[%emt 0:00:02]} 54. Rc8 {[%emt 0:00:04]} Ka3 {[%emt 0:00:05]} 55. Rc5 {[%emt 0:00:01]} b4 {[%emt 0:00:14]} 56. Ra5+ {[%emt 0:00:02]} Kb2 {[%emt 0:00:01]} 57. Rb5 {[%emt 0:00:07]} Bc3 {[%emt 0:00:03]} 58. a4 {[%emt 0:00:11]} b3 {[%emt 0:00:20]} 59. a5 {[%emt 0:00:03]} Be2 {[%emt 0:00:02]} 60. Rb6 {[%emt 0:00:09]} Bxa5 {[%emt 0:00:11]} 61. Rxf6 {[%emt 0:00:01]} Kc2 {[%emt 0:00:03]} 62. Rc6+ {[%emt 0:00:04]} Bc3 {[%emt 0:00:03]} 63. Rb6 {[%emt 0:00:10]} b2 {[%emt 0:00:03]} 64. Rxb2+ {[%emt 0:00:02]} Bxb2 {[%emt 0:00:08]} 65. Kh1 {[%emt 0:00:01]} Bf3+ {[%emt 0:00:06]} 66. Kg1 {[%emt 0:00:01]} Bg2 {[%emt 0:00:03]} 0-1

[Event "European Online Club-ch-G 2021"]
[Site "Online"]
[Date "2021.03.27"]
[Round "1.7"]
[White "Piorun, Kacper"]
[Black "Favarel, Camille"]
[Result "1-0"]
[ECO "A11"]
[WhiteElo "2615"]
[BlackElo "2188"]
[Annotator "ChessBase"]
[PlyCount "57"]
[EventDate "2021.03.27"]
[EventType "team-tourn"]
[EventCountry "NET"]
[SourceTitle "playchess.com"]
[Source "ChessBase"]
[SourceQuality "1"]
[TimeControl "900+5"]

1. c4 {[%emt 0:00:00]} c6 {[%emt 0:00:06]} 2. Nf3 {[%emt 0:00:08]} d5 {[%emt 0:00:03]} 3. e3 {[%emt 0:00:01]} Nf6 {[%emt 0:00:12]} 4. b3 {[%emt 0:00:01]} g6 {[%emt 0:00:02]} 5. Bb2 {[%emt 0:00:02]} Bg7 {[%emt 0:00:02]} 6. Be2 {[%emt 0:00:05]} O-O {[%emt 0:00:03]} 7. O-O {[%emt 0:00:01]} a5 {[%emt 0:00:17]} 8. Nc3 {[%emt 0:00:08]} Na6 {[%emt 0:00:43]} 9. d4 {[%emt 0:00:06]} Bf5 {[%emt 0:00:32]} 10. Rc1 {[%emt 0:00:16]} Nc7 {[%emt 0:01:02]} 11. Na4 {[%emt 0:01:16]} Ne4 {[%emt 0:01:09]} 12. Nd2 {[%emt 0:00:51]} Nxd2 {[%emt 0:01:05]} 13. Qxd2 {[%emt 0:00:04]} Re8 {[%emt 0:00:02]} 14. Rfd1 {[%emt 0:01:13]} dxc4 {[%emt 0:01:16]} 15. Nb6 {[%emt 0:00:14]} Ra7 {[%emt 0:00:33]} 16. bxc4 {[%emt 0:00:30]} Na8 {[%emt 0:00:22]} 17. Na4 {[%emt 0:00:04]} Nb6 {[%emt 0:00:52]} 18. d5 {[%emt 0:03:19]} Bxb2 {[%emt 0:01:53]} 19. Nxb2 {[%emt 0:00:04]} a4 {[%emt 0:02:15]} 20. a3 {[%emt 0:00:09]} c5 {[%emt 0:00:19]} 21. e4 {[%emt 0:01:20]} Bd7 {[%emt 0:01:31]} 22. Qe3 {[%emt 0:01:08]} Qc7 {[%emt 0:00:02]} 23. e5 {[%emt 0:00:12]} e6 {[%emt 0:01:14]} 24. d6 {[%emt 0:00:04]} Qc8 {[%emt 0:00:01]} 25. Rc3 {[%emt 0:01:38]} Kg7 {[%emt 0:00:33]} 26. Nd3 {[%emt 0:00:05]} Ra5 {[%emt 0:00:02]} 27. Rb1 {[%emt 0:00:02]} Qd8 {[%emt 0:00:16]} 28. Nxc5 {[%emt 0:00:07]} Bc6 {[%emt 0:00:02]} 29. Rxb6 {[%emt 0:00:06]} 1-0